fUST/lending_fUST_20240328
["ID","MTS","AMOUNT","RATE_DAILY","PERIOD"]
[320821411,1711579832439,-500.0,0.00070311,21]
[320821413,1711579832448,-500.0,0.00070311,120]
[320821415,1711579832458,-589.46,0.00070311,120]
[320821417,1711579832468,-500.0,0.00070971,120]
[320821419,1711579832477,-10000.0,0.00070971,120]
[320821420,1711579832488,-525.48267334,0.00070971,120]
[320821422,1711579832497,-1000.0,0.00070971,7]
[320821424,1711579832508,-14950.05,0.0007108,120]
[320821426,1711579832520,-750.0,0.00071232,120]
[320821428,1711579832529,-900.0,0.00072602,120]
[320821430,1711579832539,-1259.56,0.00072703,120]
[320821432,1711579832549,-500.0,0.0007305,120]
[320821434,1711579832560,-500.0,0.0007305,120]
[320821436,1711579832570,-1140.0,0.0007305,90]
[320821438,1711579832580,-2021.95,0.0007305,120]
[320821440,1711579832590,-500.0,0.0007305,21]
[320821442,1711579832600,-642.91,0.0007305,120]
[320821444,1711579832609,-500.0,0.0007371,120]
[320821446,1711579832619,-10000.0,0.0007371,120]
[320821448,1711579832629,-435.02751775,0.0007371,7]
[320821450,1711579832638,-1050.0,0.00073972,120]
[320821452,1711579832649,-1374.624522,0.00074328,120]
[320821454,1711579832658,-14950.05,0.00074949,120]
[320821455,1711579832668,-1000.99446522,0.00075,2]
[320821457,1711579832678,-1200.0,0.00075342,120]
[320821460,1711579832689,-1259.56,0.00075443,120]
[320821461,1711579832698,-500.0,0.0007579,120]
[320821463,1711579832710,-500.0,0.0007579,120]
[320821465,1711579832721,-1140.0,0.0007579,90]
[320821467,1711579832731,-2021.95,0.0007579,120]
[320821470,1711579832743,-500.0,0.0007579,21]
[320821471,1711579832754,-350.806469,0.00075798,30]
[320821473,1711579832765,-500.0,0.0007645,120]
[320821475,1711579832776,-10000.0,0.0007645,120]
[320821477,1711579832787,-599.0,0.00076567,120]
[320821480,1711579832798,-1350.0,0.00076712,120]
[320821481,1711579832807,-2202.87538702,0.00077778,120]
[320821483,1711579832818,-1500.0,0.00078082,120]
[320821485,1711579832827,-1259.56,0.00078183,120]
[320821487,1711579832837,-500.0,0.0007853,120]
[320821489,1711579832847,-250.50522527,0.0007853,120]
[320821491,1711579832857,-1140.0,0.0007853,90]
[320821493,1711579832868,-2021.95,0.0007853,120]
[320821495,1711579832878,-170.29,0.0007853,21]
[320821497,1711579832887,-500.0,0.0007919,120]
[320821499,1711579832898,-10000.0,0.0007919,120]
[320821501,1711579832907,-1650.0,0.00079452,120]
[320821503,1711579832916,-150.0,0.00080429,120]
[320821505,1711579832926,-1800.0,0.00080821,120]
[320821507,1711579832935,-1259.56,0.00080922,120]
[320821509,1711579832945,-500.0,0.0008127,120]
[320821511,1711579832954,-1140.0,0.0008127,90]
[320821513,1711579832965,-2021.95,0.0008127,120]
[320821515,1711579832975,-150.0,0.00081429,120]
[320821516,1711579832986,-500.0,0.0008193,120]
[320821518,1711579832996,-10000.0,0.0008193,120]
[320821520,1711579833006,-14950.05,0.0008219,120]
[320821522,1711579833015,-1950.0,0.00082191,120]
[320821524,1711579833025,-150.0,0.00082429,120]
[320821526,1711579833035,-170.23740263,0.00083561,120]
[320821528,1711579833045,-1259.56,0.00083662,120]
[320821530,1711579833054,-500.0,0.00084009,120]
[320821532,1711579833065,-1140.0,0.00084009,90]
[320821534,1711579833075,-2021.95,0.00084009,120]
[320821536,1711579833084,-500.0,0.00084669,120]
[320821538,1711579833095,-10000.0,0.00084669,120]
[320821540,1711579833105,-2000.0,0.00086356,120]
[320821542,1711579833115,-1259.56,0.00086402,120]
[320821544,1711579833124,-500.0,0.00086749,120]
[320821546,1711579833133,-1140.0,0.00086749,90]
[320821548,1711579833144,-2021.95,0.00086749,120]
[320821550,1711579833153,-151.101,0.000868,120]
[320821552,1711579833163,-14950.05,0.00087253,120]
[320821554,1711579833174,-500.0,0.00087409,120]
[320821556,1711579833184,-10000.0,0.00087409,120]
[320821558,1711579833198,-175.463552,0.00088121,2]
[320821560,1711579833207,-1259.56,0.00089141,120]
[320821562,1711579833216,-500.0,0.00089489,120]
[320821564,1711579833226,-1140.0,0.00089489,90]
[320821566,1711579833235,-2021.95,0.00089489,120]
[320821568,1711579833244,-500.0,0.0009,120]
[320821570,1711579833253,-289.248575,0.00090149,120]
[320821572,1711579833263,-10000.0,0.00090149,120]
[320821574,1711579833273,-500.0,0.00091,120]
[320821576,1711579833284,-1259.56,0.00091881,120]
[320821578,1711579833294,-21676.46951073,0.00091999,120]
[320821580,1711579833305,-500.0,0.00092,120]
[320821582,1711579833314,-500.0,0.00092229,120]
[320821584,1711579833325,-1140.0,0.00092229,90]
[320821586,1711579833334,-2021.95,0.00092229,120]
[320821588,1711579833345,-2000.0,0.00092418,120]
[320821590,1711579833354,-14950.05,0.00092464,120]
[320821592,1711579833364,-10000.0,0.00092889,120]
[320821593,1711579833374,-289.46369685,0.00092943,14]
[320821595,1711579833384,-500.0,0.00093,120]
[320821597,1711579833393,-500.0,0.00094,120]
[320821599,1711579833402,-1259.56,0.00094621,120]
[320821601,1711579833411,-2000.0,0.00094711,120]
[320821603,1711579833420,-500.0,0.00094968,120]
[320821605,1711579833429,-1140.0,0.00094968,90]
[320821607,1711579833439,-2021.95,0.00094968,120]
[320821609,1711579833448,-500.0,0.00095,120]
[320821611,1711579833456,-14950.05,0.00095367,120]
[320821613,1711579833465,-10000.0,0.00095628,120]
[320821615,1711579833474,-932.93018001,0.00095746,4]
[320821617,1711579833485,-500.0,0.00096,120]
[320821619,1711579833494,-2000.0,0.00096307,120]
[320821621,1711579833503,-500.0,0.000969,120]
[320821623,1711579833512,-202.53635729,0.0009698,14]
[320821625,1711579833524,-155.14701896,0.0009698,120]
[320821627,1711579833533,-716285.2953918,0.00096997,120]
[320821630,1711579833549,-1114.91189903,0.00096997,120]
[320821632,1711579833560,-168295.60901296,0.00096997,120]
[320821634,1711579833569,-14950.05,0.00096998,120]
[320821636,1711579833578,-8858.95900974,0.00096998,120]
[320821638,1711579833590,-6091.09099026,0.00096998,120]
[320821640,1711579833599,-3140.09394899,0.00096998,120]
[320821643,1711579833630,500.0,0.00056612,120]
[320821644,1711579833659,5000.0,0.0007,2]
[320821645,1711579833713,452.89,0.00059352,120]
[320821677,1711579835956,546.95,0.00056612,120]
[320821709,1711579838054,-430.83675919,0.00070308,7]
[320821711,1711579838063,-156.00134264,0.00070308,7]
[320821713,1711579838073,-316.03701211,0.00070309,7]
[320821715,1711579838082,-248.33962604,0.00070309,7]
[320821717,1711579838093,-2218.60432067,0.00070309,7]
[320821719,1711579838107,-1832.22756355,0.00070309,7]
[320821722,1711579838118,-191.81893491,0.00070309,7]
[320821724,1711579838128,-1213.88645623,0.0007031,7]
[320821726,1711579838138,-1.33960478,0.00081929,120]
[320821728,1711579838150,-220.8998383,0.00081929,120]
[320821729,1711579838159,-634.51964622,0.00081929,120]
[320821731,1711579838169,-137.25586175,0.00081929,120]
[320821732,1711579838183,-114.46899338,0.00081929,120]
[320821733,1711579838193,-632.05278469,0.00096997,14]
[320821735,1711579838203,-2755.42376848,0.00096998,120]
[320821737,1711579838215,-9054.53228253,0.00096998,120]
[320821738,1711579838225,-14950.05,0.00096998,120]
[320821739,1711579838234,-14950.05,0.00096998,120]
[320821740,1711579838243,-14950.22759176,0.00096998,120]
[320821741,1711579838253,-150.0,0.00096999,120]
[320821742,1711579838263,-658067.92,0.00097,120]
[320821743,1711579838274,-151.0,0.00097,120]
[320821744,1711579838284,-151.0,0.00097,30]
[320821745,1711579838294,-151.097734,0.00097,30]
[320821746,1711579838304,-151.0,0.00097,120]
[320821747,1711579838314,-151.360963,0.00097,120]
[320821748,1711579838325,-151.658635,0.00097,120]
[320821749,1711579838335,-151.754353,0.00097,120]
[320821750,1711579838345,-1259.56,0.00097361,120]
[320821751,1711579838355,-500.0,0.00097708,120]
[320821752,1711579838365,-1140.0,0.00097708,90]
[320821753,1711579838374,-2021.95,0.00097708,120]
[320821754,1711579838384,-150.5,0.0009797,35]
[320821755,1711579838392,-210.0,0.0009797,35]
[320821756,1711579838402,-150.5,0.0009798,35]
[320821757,1711579838411,-210.0,0.0009798,35]
[320821758,1711579838491,-150.5,0.0009799,35]
[320821759,1711579838514,-210.0,0.0009799,35]
[320821760,1711579838526,-150.0,0.00097999,120]
[320821761,1711579838535,-1000.0,0.00098,120]
[320821762,1711579838545,-144154.53749901,0.00098,120]
[320821779,1711579839927,500.28131648,0.00056612,120]
[320821783,1711579840198,-191225.16250099,0.00098,120]
[320821784,1711579840208,-169.771076,0.00098,120]
[320821785,1711579840217,-151.0,0.00098,120]
[320821786,1711579840226,-10000.0,0.00098368,120]
[320821787,1711579840235,-163.54562525,0.00098998,120]
[320821788,1711579840244,-150.0,0.00098999,120]
[320821789,1711579840254,-10000.0,0.00099,120]
[320821790,1711579840264,-10000.0,0.00099,120]
[320821791,1711579840274,-1536.74853,0.00099,120]
[320821793,1711579840283,-150.0,0.00099206,120]
[320821795,1711579840292,-635.27243804,0.000998,120]
[320821796,1711579840301,-154.76,0.0009999,35]
[320821797,1711579840310,-2862.65615277,0.00099998,14]
[320821798,1711579840319,-155.10909972,0.00099998,14]
[320821799,1711579840329,-262.65452431,0.00099998,7]
[320821800,1711579840338,-161.01641396,0.00099998,14]
[320821801,1711579840347,-150.0,0.00099999,120]
[320821802,1711579840356,-1000.0,0.00099999,120]
[320821803,1711579840365,-631.94445589,0.00099999,9]
[320821804,1711579840375,-17972.37123545,0.001,120]
[320821808,1711579843302,-496.51430158,0.00074948,120]
[320821809,1711579843311,-173.7338918,0.00074948,120]
[320821810,1711579843320,-1450.80016649,0.0009702,2]
[320821813,1711579857361,500.0,0.00056612,120]
[320821814,1711579857824,173.55,0.00059352,120]
[320821815,1711579864499,500.43402316,0.00056612,120]
[320821816,1711579865163,2605.4070795,0.00017921,2]
[320821817,1711579866579,500.0,0.00056612,120]
[320821818,1711579868294,70344.5677723,0.00055787,120]
[320821819,1711579874605,500.0,0.00055528,120]
[320821820,1711579874869,500.0,0.00058268,120]
[320821821,1711579875270,500.0,0.00061007,120]
[320821822,1711579875540,500.8,0.00063747,120]
[320821823,1711579883257,500.0,0.00053418,90]
[320821824,1711579883624,500.0,0.00056158,90]
[320821825,1711579883906,500.0,0.00058898,90]
[320821826,1711579884196,500.0,0.00061637,90]
[320821827,1711579884464,500.0,0.00064377,90]
[320821828,1711579884720,500.0,0.00067117,90]
[320821829,1711579884970,500.0,0.00069856,90]
[320821830,1711579886287,52089.16627333,0.00056612,120]
[320821840,1711580070620,400.0,0.00012,7]
[320821848,1711580098317,-250.0,0.0004,2]
[320821849,1711580098345,-1603.93250442,0.00056045,4]
[320821850,1711580098372,-961.66654025,0.00056045,4]
[320821851,1711580098398,-155.0,0.00056045,4]
[320821852,1711580098424,-5000.0,0.00056046,30]
[320821853,1711580098449,-500.53806333,0.00056612,120]
[320821854,1711580098476,-500.0,0.00056612,120]
[320821855,1711580098504,-500.3484727,0.00056612,120]
[320821856,1711580098532,-500.21780321,0.00056612,120]
[320821857,1711580098557,-500.0,0.00056612,120]
[320821858,1711580098583,-524.82,0.00056612,120]
[320821859,1711580098609,-524.82,0.00059352,120]
[320821860,1711580098635,-271.93699123,0.00059999,120]
[320821861,1711580098659,-313231.10793483,0.0006,120]
[320821862,1711580098683,-3071.22734544,0.0006,30]
[320821864,1711580114327,500.0,0.0005331,120]
[320821865,1711580125329,500.0,0.00052306,90]
[320821866,1711580125572,500.0,0.00055046,90]
[320821867,1711580125814,500.0,0.00057785,90]
[320821902,1711581032274,-5000.0,0.00049546,30]
[320821903,1711581032284,-181.6535357,0.00050046,4]
[320821904,1711581032297,-1422.27896872,0.00050046,4]
[320821905,1711581032308,-1000.0,0.00050047,4]
[320821906,1711581032325,-500.0,0.00050558,120]
[320821908,1711581032336,-500.0,0.00053298,120]
[320821910,1711581032345,-500.0,0.00056038,120]
[320821912,1711581032354,-198.889088,0.00058327,30]
[320821914,1711581032364,-597.4111035,0.00058394,2]
[320821916,1711581032373,-500.0,0.00058777,120]
[320821918,1711581032382,-500.0,0.00061517,120]
[320821920,1711581032392,-868.71801917,0.0006209,7]
[320821922,1711581032402,-6278.00679862,0.000639,120]
[320821924,1711581032411,-24900.0,0.00064179,2]
[320821926,1711581032421,-2044.7333689,0.00064236,2]
[320821928,1711581032430,-500.0,0.00064257,120]
[320821930,1711581032439,-500.0,0.00065753,120]
[320821932,1711581032448,-179.252085,0.00066371,2]
[320821934,1711581032461,-500.0,0.00066996,120]
[320821936,1711581032470,-2118.10200462,0.00068493,120]
[320821938,1711581032479,-500.0,0.00069736,120]
[320821940,1711581032488,-151.0,0.00071092,2]
[320821941,1711581032497,-500.0,0.00072476,120]
[320821942,1711581032506,-500.0,0.00075216,120]
[320821943,1711581032515,-500.0,0.00077955,120]
[320821944,1711581032524,-500.0,0.00079986,90]
[320821945,1711581032534,-758.23,0.00079986,120]
[320821946,1711581032547,-26952.34214537,0.00079987,120]
[320821947,1711581032557,-500.0,0.00080695,120]
[320821948,1711581032566,-500.0,0.00082726,90]
[320821949,1711581032575,-758.23,0.00082726,120]
[320821950,1711581032584,-500.0,0.00083435,120]
[320821951,1711581032594,-500.0,0.00085466,90]
[320821952,1711581032603,-758.23,0.00085466,120]
[320821953,1711581032613,-500.0,0.00086175,120]
[320821954,1711581032624,-151.101,0.000868,120]
[320821955,1711581032634,-25000.0,0.00088,120]
[320821956,1711581032643,-500.0,0.00088206,90]
[320821957,1711581032654,-758.23,0.00088206,120]
[320821958,1711581032665,-500.0,0.00088914,120]
[320821959,1711581032674,-1500.0,0.0009,2]
[320821960,1711581032683,-500.0,0.00090945,90]
[320821961,1711581032693,-758.23,0.00090945,120]
[320821962,1711581032702,-13133.42900697,0.000912,120]
[320821963,1711581038225,-176.48301418,0.00065752,12]
[320821964,1711581038234,-5702.00977983,0.000912,120]
[320821965,1711581038246,-31164.56121321,0.000912,120]
[320821966,1711581038255,-500.0,0.00091654,120]
[320821967,1711581038264,-500.0,0.00093685,90]
[320821968,1711581038273,-758.23,0.00093685,120]
[320821969,1711581038283,-500.0,0.00094394,120]
[320821970,1711581038292,-500.0,0.000949,120]
[320821971,1711581038302,-830566.40784509,0.0009499,120]
[320822405,1711581047060,-2719.90531706,0.00065094,30]
[320823941,1711582151162,-154.98450155,0.00061846,7]
[320823942,1711582151183,-1000.00481606,0.00061846,7]
[320823943,1711582151204,-154.98450155,0.00061847,7]
[320823944,1711582151224,-1067.70080156,0.00061847,7]
[320823945,1711582151244,-1804.42406748,0.00061847,7]
[320823946,1711582151263,-154.98450155,0.00061848,7]
[320823947,1711582151284,-185.60168167,0.00061848,7]
[320823948,1711582151306,-171.95451066,0.00061849,7]
[320823949,1711582151328,-3322.0502167,0.0006185,7]
[320823950,1711582151347,-39.31540085,0.00061859,30]
[320824013,1711582238467,-1362.2691204,0.00061228,30]
[320824015,1711582238477,-7324.70500523,0.00063788,7]
[320824017,1711582238486,-1120.04879684,0.0006379,7]
[320824019,1711582238495,-489.12912708,0.00065093,2]
[320824021,1711582238507,-4161.15756822,0.00065093,2]
[320824023,1711582238517,-225.44821354,0.00070632,14]
[320824025,1711582238527,-250.0,0.00070732,120]
[320824027,1711582238536,-11773.81788005,0.00071977,2]
[320824029,1711582238548,-1155.95943727,0.00071977,2]
[320824191,1711582240621,-11970.22268268,0.00071977,2]
[320824192,1711582240631,-173.7637923,0.00073989,2]
[320824193,1711582240640,-280.897635,0.00074089,30]
[320824194,1711582240650,-999.999999,0.0008,120]
[320824195,1711582240659,-151.101,0.000868,120]
[320824196,1711582240669,-500.0,0.00088,120]
[320824197,1711582240679,-2800.78,0.00088,90]
[320824198,1711582240688,-500.0,0.00089,120]
[320824199,1711582240697,-2004.91563053,0.00089798,7]
[320824200,1711582240708,-1000.00481606,0.00089799,7]
[320824201,1711582240717,-1000.0,0.000898,110]
[320824202,1711582240727,-500.0,0.0009,120]
[320824203,1711582240738,-920.79514438,0.00090248,14]
[320824204,1711582240747,-621.14392404,0.000918,90]
[320824357,1711582243950,-2878.85607596,0.000918,90]
[320824358,1711582243959,-1699.22,0.00093,110]
[320824359,1711582243968,-2116.4284155,0.0009388,90]
[320824360,1711582243977,-302.59359524,0.00094888,14]
[320824361,1711582243987,-3274.401257,0.00094888,14]
[320824363,1711582243996,-500.0,0.00094889,120]
[320824365,1711582244007,-254.91990936,0.00094988,12]
[320824367,1711582244017,-864.38002108,0.00094997,14]
[320824369,1711582244028,-348.73394197,0.00094997,120]
[320824371,1711582244037,-1301.46396623,0.00094998,14]
[320824373,1711582244047,-44.42288337,0.00094998,14]
[320824375,1711582244062,-207.89218253,0.00094998,14]
[320824377,1711582244071,-1087.17436427,0.00094998,14]
[320824379,1711582244081,-155.01240099,0.00094998,14]
[320824381,1711582244090,-5062.80447504,0.00094998,14]
[320824383,1711582244101,-305.57081427,0.00094998,14]
[320824385,1711582244110,-155.31027849,0.00094998,14]
[320824387,1711582244119,-155.55597132,0.00094998,14]
[320824390,1711582244129,-286.59300764,0.00094998,14]
[320824392,1711582244139,-1235.47406484,0.00094998,14]
[320824394,1711582244148,-1061.18663917,0.00094998,14]
[320824396,1711582244157,-279.83893546,0.00094998,14]
[320824397,1711582244167,-155.39512775,0.00094999,14]
[320824400,1711582244177,-1573.60018062,0.00094999,14]
[320824402,1711582244186,-8190.28,0.00094999,120]
[320824403,1711582244195,-1545.21365496,0.00095,120]
[320824408,1711582244232,-3880.0,0.00095,120]
[320824411,1711582244245,-2835.0,0.00095,120]
[320824413,1711582244256,-408.979401,0.00095,120]
[320824415,1711582244268,-402.30000005,0.00095,120]
[320824421,1711582244318,-8892.20952995,0.00095,120]
[320825252,1711583193163,-1148.0,0.0006111,120]
[320825253,1711583193185,-154.98450155,0.00061112,7]
[320825254,1711583193206,-1074.8581326,0.00061112,7]
[320825302,1711583433132,-949.06737916,0.00058989,4]
[320825303,1711583433141,-2271.32308607,0.0005899,4]
[320825304,1711583433151,-623.36698867,0.00058991,4]
[320825305,1711583433160,-800.00385285,0.00058992,4]
[320825306,1711583433169,-295.12843601,0.00058993,4]
[320825307,1711583433179,-999.0,0.00059,120]
[320825308,1711583433190,-999.0,0.0006,120]
[320825310,1711583433200,-300.0,0.00060999,60]
[320825312,1711583433209,-999.0,0.00061,120]
[320825314,1711583433219,-1804.42406748,0.00061114,7]
[320825316,1711583433228,-14967.85246825,0.00063069,2]
[320825319,1711583433240,-9932.14753175,0.00063069,2]
[320825321,1711583433249,-193.2413259,0.00071462,14]
[320825323,1711583433258,-280.897635,0.00071562,30]
[320825325,1711583433268,-500.0,0.00071976,120]
[320825327,1711583433277,-265.03242858,0.0008,99]
[320825329,1711583433286,-151.101,0.000868,120]
[320825331,1711583433295,-500.0,0.000889,120]
[320825333,1711583433305,-155.12882701,0.00089799,7]
[320825335,1711583433314,-500.0,0.000899,120]
[320825337,1711583433323,-1061.45125176,0.0009,120]
[320825351,1711583438641,-337.29999998,0.0009,120]
[320825352,1711583438653,-3310.31942059,0.0009,120]
[320825390,1711583442993,-6600.0,0.0009,120]
[320825391,1711583443005,-7105.60932767,0.0009,120]
[320825392,1711583443015,-11069.88992206,0.0009,120]
[320825404,1711583444009,-4820.92635369,0.0009,120]
[320825448,1711583446794,-3668.4576495,0.0009,120]
[320825455,1711583659293,2319.45874615,0.000125,2]
[320825457,1711584188034,165.59,0.00025,2]
[320825466,1711584578854,676.08738566,0.000229,2]
[320825511,1711584631846,-225.08544316,0.00027899,2]
[320825512,1711584631856,-676.08738566,0.000279,2]
[320825513,1711584631865,-96.74561276,0.00033265,4]
[320825514,1711584631903,-603.25775848,0.00033265,4]
[320825516,1711584631912,-636.73139694,0.00033269,2]
[320825517,1711584631921,-2000.0,0.00033642,2]
[320825518,1711584631930,-150.0,0.00034443,2]
[320825519,1711584631939,-150.96980604,0.00056106,2]
[320825520,1711584631948,-301.93961208,0.00057049,4]
[320825521,1711584631957,-173.084981,0.00060365,120]
[320825522,1711584631967,-150.0,0.00061,120]
[320825523,1711584631976,-24900.0,0.00062041,2]
[320825524,1711584631986,-32210.19031669,0.000748,3]
[320825525,1711584631995,-10000.0,0.00075,15]
[320825526,1711584632004,-2000.0,0.00075,120]
[320825527,1711584632015,-150.0,0.0007538,120]
[320825528,1711584632024,-165.6354222,0.000799,14]
[320825529,1711584632033,-8000.0,0.0008,120]
[320825530,1711584632042,-300.0,0.0008,105]
[320825531,1711584632051,-3484.04,0.00080999,120]
[320825532,1711584632061,-8000.0,0.00081,120]
[320825533,1711584632070,-8000.0,0.00082,120]
[320825534,1711584632079,-8000.0,0.00082,120]
[320825535,1711584632089,-8000.0,0.00082,120]
[320825536,1711584632098,-1000.0,0.00082192,120]
[320825537,1711584632109,-1000.0,0.00082192,120]
[320825538,1711584632118,-1000.0,0.00082192,120]
[320825539,1711584632129,-1000.0,0.00082192,120]
[320825540,1711584632138,-1000.0,0.00082192,120]
[320825541,1711584632147,-1000.0,0.00082192,120]
[320825542,1711584632156,-1000.0,0.00082192,120]
[320825543,1711584632166,-1000.0,0.00082192,120]
[320825544,1711584632178,-1000.0,0.00082192,120]
[320825545,1711584632187,-999.77,0.00082192,120]
[320825546,1711584632196,-3484.04,0.00082999,120]
[320825547,1711584632206,-8000.0,0.00083,120]
[320825548,1711584632215,-8000.0,0.00083,120]
[320825549,1711584632224,-8000.0,0.00084,120]
[320825550,1711584632234,-150.96980604,0.00084159,2]
[320825551,1711584632243,-3484.04,0.00084999,120]
[320825552,1711584632253,-8000.0,0.00085,120]
[320825553,1711584632262,-8000.0,0.00085,120]
[320825554,1711584632271,-8000.0,0.00085,120]
[320825555,1711584632281,-8000.0,0.00085,120]
[320825556,1711584632291,-4376.0,0.00085,120]
[320825557,1711584632300,-565.31183412,0.00085999,30]
[320825558,1711584632310,-4811.29536613,0.00086,120]
[320825586,1711584637884,-500.0,0.00080999,120]
[320825588,1711584637894,-3188.70463387,0.00086,120]
[320825590,1711584637903,-8000.0,0.00086,120]
[320825592,1711584637912,-8000.0,0.00086,120]
[320825594,1711584637921,-151.101,0.000868,120]
[320825596,1711584637931,-75692.67058891,0.000869,61]
[320825598,1711584637940,-175109.68319484,0.000869,2]
[320825600,1711584637949,-3484.04,0.00086999,120]
[320825602,1711584637959,-8000.0,0.00087,120]
[320825604,1711584637968,-8000.0,0.00087,120]
[320825606,1711584637977,-8000.0,0.00087,120]
[320825608,1711584637986,-3484.04,0.00087999,120]
[320825610,1711584637996,-3484.04,0.00087999,120]
[320825612,1711584638005,-3484.04,0.00087999,120]
[320825613,1711584638014,-599.0,0.00087999,120]
[320825614,1711584638023,-8000.0,0.00088,120]
[320825615,1711584638034,-8000.0,0.00088,120]
[320825616,1711584638043,-8000.0,0.00088,120]
[320825617,1711584638053,-500.0,0.000889,120]
[320825618,1711584638062,-8000.0,0.00089,120]
[320825619,1711584638072,-8000.0,0.00089,120]
[320825620,1711584638081,-1516.25930099,0.000891,4]
[320825621,1711584638190,-163.54562525,0.000891,120]
[320825622,1711584638200,-500.0,0.000899,120]
[320825623,1711584638211,-3484.04,0.00089979,120]
[320825624,1711584638221,-3484.04,0.00089979,120]
[320825625,1711584638231,-82743.78959636,0.0008998,120]
[320825626,1711584638239,-151.0,0.0008998,120]
[320825627,1711584638249,-3484.04,0.00089998,120]
[320825628,1711584638259,-30168.73469757,0.00089999,7]
[320825629,1711584638268,-3484.04,0.00089999,120]
[320825630,1711584638277,-3484.04,0.00089999,120]
[320825631,1711584638286,-80440.72607475,0.0009,120]
[320825632,1711584638295,-1000.0,0.0009,120]
[320825633,1711584638305,-151.0,0.0009,30]
[320825634,1711584638314,-151.097734,0.0009,30]
[320825635,1711584638323,-151.0,0.0009,120]
[320825636,1711584638332,-1174.427036,0.0009,120]
[320825637,1711584638341,-1174.427036,0.0009,120]
[320825638,1711584638351,-151.0,0.0009,120]
[320825639,1711584638360,-151.360963,0.0009,120]
[320825640,1711584638369,-151.658635,0.0009,120]
[320825641,1711584638377,-151.754353,0.0009,120]
[320825642,1711584638387,-151.0,0.0009,120]
[320825643,1711584638396,-173.084981,0.00090548,120]
[320825644,1711584638406,-500.0,0.000909,120]
[320825645,1711584638415,-3484.04,0.00090999,120]
[320825646,1711584638424,-20000.0,0.00091,120]
[320825647,1711584638434,-500.0,0.000919,120]
[320825648,1711584638442,-20000.0,0.00092,120]
[320825649,1711584638452,-1000.0,0.00092,120]
[320825650,1711584638461,-3168.45635134,0.000928,2]
[320825651,1711584638470,-252323.31725642,0.00092898,120]
[320825976,1711584644629,-119345.95529351,0.00092898,120]
[320826079,1711584646003,-422.52922821,0.00092897,14]
[320826081,1711584646013,-925.15077179,0.00092898,120]
[320826088,1711584646070,-184922.14258004,0.00092898,120]
[320826761,1711585833664,-1000.00481606,0.00082999,7]
[320826763,1711585833674,-968.57,0.00083,120]
[320826765,1711585833683,-4037.38021569,0.00083037,30]
[320826768,1711585833695,-5229.74103363,0.00083037,30]
[320827132,1711585838075,-15632.87875068,0.00083037,30]
[320827134,1711585838084,-920.51707482,0.0008356,7]
[320827136,1711585838094,-610.18167548,0.00083561,7]
[320827138,1711585838104,-2000.0,0.00083562,120]
[320827140,1711585838113,-2000.0,0.00083562,120]
[320827142,1711585838122,-1835.316,0.00083562,120]
[320827144,1711585838131,-1479.34920635,0.00085888,2]
[320827146,1711585838141,-151.101,0.000868,120]
[320827148,1711585838150,-173.0849828,0.00087299,120]
[320827150,1711585838159,-174.488239,0.00087791,2]
[320827152,1711585838169,-500.0,0.000879,120]
[320827153,1711585838178,-1000.0,0.00088,120]
[320827155,1711585838187,-652.1127159,0.0008825,7]
[320827157,1711585838197,-1119.19764989,0.0008825,7]
[320827159,1711585838206,-500.0,0.000889,120]
[320827161,1711585838215,-500.0,0.000899,120]